[Event "*** SCC Grand Prix: Titled Tuesday Blitz"]
[Site "Chess.com"]
[Date "2020.07.21"]
[Round "10"]
[White "mikheeva86"]
[Black "Playgood28"]
[Result "0-1"]
[WhiteElo "1942"]
[BlackElo "2281"]
[TimeControl "180+1"]
[EndTime "12:00:20 PDT"]
[Termination "Playgood28 won by resignation"]

1. e4 {[%clk 0:03:00.9]} 1... e5 {[%clk 0:02:59.5]} 2. Nf3 {[%clk 0:02:59.7]}
2... d6 {[%clk 0:02:59.2]} 3. d4 {[%clk 0:02:58.7]} 3... exd4 {[%clk 0:03:00.1]}
4. Nxd4 {[%clk 0:02:58.1]} 4... Nf6 {[%clk 0:03:00.3]} 5. Nc3 {[%clk 0:02:56.9]}
5... Be7 {[%clk 0:03:00.7]} 6. Bf4 {[%clk 0:02:49.4]} 6... O-O {[%clk
0:02:59.7]} 7. Be2 {[%clk 0:02:49.5]} 7... a6 {[%clk 0:02:58.1]} 8. O-O {[%clk
0:02:49.9]} 8... c5 {[%clk 0:02:57.1]} 9. Nf3 {[%clk 0:02:43.8]} 9... Nc6 {[%clk
0:02:52.3]} 10. e5 {[%clk 0:02:42.1]} 10... dxe5 {[%clk 0:02:50.5]} 11. Nxe5
{[%clk 0:02:41.3]} 11... Nxe5 {[%clk 0:02:48]} 12. Bxe5 {[%clk 0:02:40.7]} 12...
Bf5 {[%clk 0:02:39.9]} 13. Rc1 {[%clk 0:02:25.5]} 13... b5 {[%clk 0:02:36.1]}
14. Bf3 {[%clk 0:02:24]} 14... Ra7 {[%clk 0:02:35.8]} 15. Qxd8 {[%clk
0:02:18.4]} 15... Rxd8 {[%clk 0:02:34.2]} 16. Rfe1 {[%clk 0:02:14.3]} 16... Kf8
{[%clk 0:02:28.1]} 17. Ne4 {[%clk 0:02:09.3]} 17... Nxe4 {[%clk 0:02:22.8]} 18.
Bxe4 {[%clk 0:02:08.3]} 18... Bxe4 {[%clk 0:02:21.2]} 19. Rxe4 {[%clk 0:02:08]}
19... Rad7 {[%clk 0:02:21.4]} 20. a3 {[%clk 0:01:56.4]} 20... c4 {[%clk
0:02:09.9]} 21. Bc3 {[%clk 0:01:51.9]} 21... Bg5 {[%clk 0:01:50.7]} 22. Rce1
{[%clk 0:01:49.1]} 22... Bd2 {[%clk 0:01:40.9]} 23. Rc1 {[%clk 0:01:04]} 23...
Bxc3 {[%clk 0:01:38.7]} 24. bxc3 {[%clk 0:01:03.1]} 24... Rd1+ {[%clk
0:01:31.3]} 25. Re1 {[%clk 0:01:01.5]} 25... R1d2 {[%clk 0:01:31.2]} 26. Kf1
{[%clk 0:00:58.8]} 26... h5 {[%clk 0:01:19.8]} 27. Re2 {[%clk 0:00:54.4]} 27...
Rd1+ {[%clk 0:01:17.7]} 28. Rxd1 {[%clk 0:00:47.4]} 28... Rxd1+ {[%clk
0:01:14.9]} 29. Re1 {[%clk 0:00:48]} 29... Rd2 {[%clk 0:01:13.3]} 30. Re2 {[%clk
0:00:46.8]} 30... Rd6 {[%clk 0:01:12]} 31. Ke1 {[%clk 0:00:42.2]} 31... g6
{[%clk 0:01:11.4]} 32. h4 {[%clk 0:00:38.7]} 32... f6 {[%clk 0:01:03.4]} 33. g3
{[%clk 0:00:39.2]} 33... Kf7 {[%clk 0:01:03]} 34. Rd2 {[%clk 0:00:37.8]} 34...
Rxd2 {[%clk 0:00:39.3]} 35. Kxd2 {[%clk 0:00:37.7]} 35... Ke6 {[%clk 0:00:39.8]}
36. Ke3 {[%clk 0:00:38.2]} 36... Ke5 {[%clk 0:00:33]} 37. Kf3 {[%clk 0:00:35.1]}
37... g5 {[%clk 0:00:25]} 38. Ke3 {[%clk 0:00:32.2]} 38... Kf5 {[%clk
0:00:21.4]} 39. f3 {[%clk 0:00:27.2]} 39... gxh4 {[%clk 0:00:19.4]} 40. gxh4
{[%clk 0:00:26.3]} 40... Ke5 {[%clk 0:00:19.2]} 41. f4+ {[%clk 0:00:13.8]} 41...
Kf5 {[%clk 0:00:18.8]} 42. Kf3 {[%clk 0:00:12.3]} 42... a5 {[%clk 0:00:19.1]}
43. Ke3 {[%clk 0:00:11]} 43... Kg4 {[%clk 0:00:18.8]} 44. Ke4 {[%clk 0:00:10.7]}
44... Kxh4 {[%clk 0:00:19.1]} 45. Kf5 {[%clk 0:00:10.7]} 45... Kg3 {[%clk
0:00:18.9]} 46. Kxf6 {[%clk 0:00:11]} 46... Kxf4 {[%clk 0:00:18.6]} 47. Kg6
{[%clk 0:00:10.6]} 47... h4 {[%clk 0:00:18.5]} 48. Kf6 {[%clk 0:00:10.4]} 48...
h3 {[%clk 0:00:19.4]} 49. Ke6 {[%clk 0:00:11]} 49... h2 {[%clk 0:00:19.7]} 50.
Kd6 {[%clk 0:00:10.5]} 50... h1=Q {[%clk 0:00:19.4]} 51. Kc5 {[%clk 0:00:10.6]}
51... Qb7 {[%clk 0:00:18.6]} 0-1

[Event "*** SCC Grand Prix: Titled Tuesday Blitz"]
[Site "Chess.com"]
[Date "2020.07.21"]
[Round "10"]
[White "PawnEatingZombie"]
[Black "pfalcon1949"]
[Result "1-0"]
[WhiteElo "2211"]
[BlackElo "1998"]
[TimeControl "180+1"]
[EndTime "12:00:27 PDT"]
[Termination "PawnEatingZombie won by checkmate"]

1. d4 {[%clk 0:03:00.9]} 1... Nf6 {[%clk 0:02:58.5]} 2. c4 {[%clk 0:03:01]} 2...
e6 {[%clk 0:02:57]} 3. Nc3 {[%clk 0:03:01.4]} 3... Bb4 {[%clk 0:02:56.8]} 4. Qc2
{[%clk 0:03:01.9]} 4... O-O {[%clk 0:02:56.4]} 5. e4 {[%clk 0:03:01.3]} 5... d5
{[%clk 0:02:56.3]} 6. e5 {[%clk 0:03:00.5]} 6... Ne4 {[%clk 0:02:56.6]} 7. Bd3
{[%clk 0:03:00.8]} 7... c5 {[%clk 0:02:56.6]} 8. Nf3 {[%clk 0:02:59.5]} 8...
cxd4 {[%clk 0:02:47.1]} 9. Nxd4 {[%clk 0:03:00.4]} 9... Nd7 {[%clk 0:02:46.4]}
10. Bf4 {[%clk 0:02:59.9]} 10... Qh4 {[%clk 0:02:40.4]} 11. g3 {[%clk
0:02:57.6]} 11... Qh3 {[%clk 0:02:33.5]} 12. O-O-O {[%clk 0:02:48]} 12... Bxc3
{[%clk 0:02:28.3]} 13. bxc3 {[%clk 0:02:40.5]} 13... Ndc5 {[%clk 0:02:28.4]} 14.
Bf1 {[%clk 0:02:23.2]} 14... Qh5 {[%clk 0:02:21.4]} 15. Be2 {[%clk 0:02:05]}
15... Qg6 {[%clk 0:02:13.3]} 16. Be3 {[%clk 0:01:39.6]} 16... f6 {[%clk
0:02:02]} 17. f3 {[%clk 0:01:20.7]} 17... fxe5 {[%clk 0:01:52.3]} 18. Nb5 {[%clk
0:01:20.3]} 18... Nf6 {[%clk 0:01:35.6]} 19. Qxg6 {[%clk 0:01:13.2]} 19... hxg6
{[%clk 0:01:36.5]} 20. Bxc5 {[%clk 0:01:13.1]} 20... Rf7 {[%clk 0:01:27.5]} 21.
Be3 {[%clk 0:01:01.5]} 21... a6 {[%clk 0:01:12.7]} 22. Na3 {[%clk 0:00:45.6]}
22... Rc7 {[%clk 0:01:09.9]} 23. Kb2 {[%clk 0:00:43.1]} 23... Bd7 {[%clk
0:01:03.4]} 24. g4 {[%clk 0:00:41.4]} 24... Bc6 {[%clk 0:00:55.1]} 25. Rhe1
{[%clk 0:00:29.2]} 25... Rac8 {[%clk 0:00:51.9]} 26. Bb6 {[%clk 0:00:28]} 26...
Rf7 {[%clk 0:00:47.6]} 27. c5 {[%clk 0:00:27.7]} 27... Nd7 {[%clk 0:00:47.6]}
28. Nc2 {[%clk 0:00:25.9]} 28... Nxb6 {[%clk 0:00:47.7]} 29. cxb6 {[%clk
0:00:25.8]} 29... Rcf8 {[%clk 0:00:46.4]} 30. Nb4 {[%clk 0:00:24.6]} 30... Rc8
{[%clk 0:00:43.7]} 31. Nxc6 {[%clk 0:00:24.2]} 31... Rxc6 {[%clk 0:00:43.6]} 32.
Rb1 {[%clk 0:00:21.4]} 32... Rxb6+ {[%clk 0:00:44.1]} 33. Kc2 {[%clk 0:00:21.9]}
33... Rxb1 {[%clk 0:00:43.8]} 34. Kxb1 {[%clk 0:00:21.6]} 34... Rc7 {[%clk
0:00:44.3]} 35. Kc2 {[%clk 0:00:21.5]} 35... Kf7 {[%clk 0:00:44.7]} 36. Bd3
{[%clk 0:00:21]} 36... d4 {[%clk 0:00:42.5]} 37. Rxe5 {[%clk 0:00:19.9]} 37...
Rxc3+ {[%clk 0:00:40.3]} 38. Kd2 {[%clk 0:00:20.2]} 38... Ra3 {[%clk 0:00:39.7]}
39. Bc4 {[%clk 0:00:17.4]} 39... Rxf3 {[%clk 0:00:37.5]} 40. Rxe6 {[%clk
0:00:17.6]} 40... Kf8 {[%clk 0:00:36.1]} 41. Rb6 {[%clk 0:00:15.9]} 41... Rf2+
{[%clk 0:00:34.4]} 42. Kd3 {[%clk 0:00:16.2]} 42... Rxh2 {[%clk 0:00:34.4]} 43.
Rxb7 {[%clk 0:00:16]} 43... Rh3+ {[%clk 0:00:34.3]} 44. Kxd4 {[%clk 0:00:15.7]}
44... Rg3 {[%clk 0:00:34.8]} 45. Be6 {[%clk 0:00:15.5]} 45... Ra3 {[%clk
0:00:31.3]} 46. Ke5 {[%clk 0:00:15.2]} 46... g5 {[%clk 0:00:27.3]} 47. Kf5
{[%clk 0:00:14.4]} 47... Ra5+ {[%clk 0:00:27]} 48. Kg6 {[%clk 0:00:13.9]} 48...
Rb5 {[%clk 0:00:25.2]} 49. Rxb5 {[%clk 0:00:13.2]} 49... axb5 {[%clk 0:00:25.3]}
50. Kxg5 {[%clk 0:00:13.8]} 50... Ke7 {[%clk 0:00:24.9]} 51. Bb3 {[%clk
0:00:14.5]} 51... Kd6 {[%clk 0:00:24.5]} 52. Kg6 {[%clk 0:00:14.8]} 52... Kc5
{[%clk 0:00:24.1]} 53. Kxg7 {[%clk 0:00:15.2]} 53... Kb4 {[%clk 0:00:25]} 54.
Kf6 {[%clk 0:00:14.8]} 54... Ka3 {[%clk 0:00:25.9]} 55. g5 {[%clk 0:00:14.5]}
55... Kb2 {[%clk 0:00:26.8]} 56. g6 {[%clk 0:00:14.9]} 56... Kc3 {[%clk
0:00:27.7]} 57. g7 {[%clk 0:00:15.2]} 57... b4 {[%clk 0:00:28.6]} 58. g8=Q
{[%clk 0:00:15]} 58... Kb2 {[%clk 0:00:29.5]} 59. Qg2+ {[%clk 0:00:14.1]} 59...
Ka3 {[%clk 0:00:30.4]} 60. Qf3 {[%clk 0:00:12.5]} 60... Kb2 {[%clk 0:00:31.3]}
61. Qd5 {[%clk 0:00:12.2]} 61... Kc3 {[%clk 0:00:32.2]} 62. Qc4+ {[%clk
0:00:12]} 62... Kb2 {[%clk 0:00:33.1]} 63. Qxb4 {[%clk 0:00:12.1]} 63... Ka1
{[%clk 0:00:31.1]} 64. a4 {[%clk 0:00:11.9]} 64... Kb2 {[%clk 0:00:30.2]} 65. a5
{[%clk 0:00:12]} 65... Kc1 {[%clk 0:00:31.1]} 66. a6 {[%clk 0:00:11.8]} 66...
Kb2 {[%clk 0:00:32]} 67. a7 {[%clk 0:00:11.9]} 67... Kb1 {[%clk 0:00:32.9]} 68.
a8=Q {[%clk 0:00:12]} 68... Kb2 {[%clk 0:00:33.8]} 69. Qg2+ {[%clk 0:00:10]}
69... Kb1 {[%clk 0:00:34.7]} 70. Qe1# {[%clk 0:00:09.2]} 1-0

[Event "*** SCC Grand Prix: Titled Tuesday Blitz"]
[Site "Chess.com"]
[Date "2020.07.21"]
[Round "10"]
[White "frederiksvane"]
[Black "Crazy_girl99"]
[Result "0-1"]
[WhiteElo "2649"]
[BlackElo "2500"]
[TimeControl "180+1"]
[EndTime "12:00:28 PDT"]
[Termination "Crazy_girl99 won by resignation"]

1. e4 {[%clk 0:03:00.9]} 1... e5 {[%clk 0:02:59.6]} 2. Nf3 {[%clk 0:03:01.1]}
2... Nc6 {[%clk 0:03:00]} 3. Bb5 {[%clk 0:03:01.7]} 3... a6 {[%clk 0:02:59.7]}
4. Ba4 {[%clk 0:03:02]} 4... Nf6 {[%clk 0:02:59.7]} 5. O-O {[%clk 0:03:02.4]}
5... Nxe4 {[%clk 0:02:59.7]} 6. d4 {[%clk 0:02:59.9]} 6... b5 {[%clk 0:02:59.9]}
7. Bb3 {[%clk 0:02:58.3]} 7... d5 {[%clk 0:03:00.3]} 8. dxe5 {[%clk 0:02:57]}
8... Be6 {[%clk 0:03:00.8]} 9. Nbd2 {[%clk 0:02:53.5]} 9... Nc5 {[%clk
0:02:59.5]} 10. c3 {[%clk 0:02:53.8]} 10... Be7 {[%clk 0:02:54.5]} 11. Bc2
{[%clk 0:02:54]} 11... d4 {[%clk 0:02:54.2]} 12. cxd4 {[%clk 0:02:49.3]} 12...
Nxd4 {[%clk 0:02:53.8]} 13. Nxd4 {[%clk 0:02:49.8]} 13... Qxd4 {[%clk
0:02:53.9]} 14. Nf3 {[%clk 0:02:50.7]} 14... Qxd1 {[%clk 0:02:51.8]} 15. Rxd1
{[%clk 0:02:51.6]} 15... O-O {[%clk 0:02:48.2]} 16. Be3 {[%clk 0:02:51.8]} 16...
Rad8 {[%clk 0:02:44.6]} 17. Nd4 {[%clk 0:02:42.7]} 17... Rfe8 {[%clk 0:01:57.6]}
18. Nc6 {[%clk 0:02:24.2]} 18... Rxd1+ {[%clk 0:01:56.3]} 19. Rxd1 {[%clk
0:02:25.1]} 19... Bf8 {[%clk 0:01:56.1]} 20. Nb4 {[%clk 0:01:53.4]} 20... a5
{[%clk 0:00:59.7]} 21. Nd5 {[%clk 0:01:51.9]} 21... Rc8 {[%clk 0:00:37.5]} 22.
b3 {[%clk 0:01:43.5]} 22... h6 {[%clk 0:00:35.5]} 23. h3 {[%clk 0:01:39.7]}
23... a4 {[%clk 0:00:26.7]} 24. Bxc5 {[%clk 0:00:35.2]} 24... Bxc5 {[%clk
0:00:27.6]} 25. bxa4 {[%clk 0:00:35.2]} 25... bxa4 {[%clk 0:00:28.3]} 26. Bxa4
{[%clk 0:00:35.5]} 26... c6 {[%clk 0:00:28.6]} 27. Nc3 {[%clk 0:00:27.2]} 27...
Bb4 {[%clk 0:00:25.5]} 28. Rc1 {[%clk 0:00:26.4]} 28... c5 {[%clk 0:00:20.1]}
29. Bb3 {[%clk 0:00:16.8]} 29... c4 {[%clk 0:00:19.7]} 30. Bd1 {[%clk
0:00:14.6]} 30... Rd8 {[%clk 0:00:19.2]} 31. Be2 {[%clk 0:00:12.1]} 31... Rd2
{[%clk 0:00:18.7]} 32. Bf1 {[%clk 0:00:09.4]} 32... Ba3 {[%clk 0:00:18.3]} 33.
Rd1 {[%clk 0:00:03.5]} 33... Rc2 {[%clk 0:00:17.9]} 34. Ne4 {[%clk 0:00:01.6]}
34... Rxa2 {[%clk 0:00:17.6]} 35. Nd6 {[%clk 0:00:01.3]} 35... c3 {[%clk
0:00:14.9]} 36. Nb5 {[%clk 0:00:01.1]} 36... c2 {[%clk 0:00:14.8]} 37. Rd8+
{[%clk 0:00:01.8]} 37... Kh7 {[%clk 0:00:14.6]} 38. Rc8 {[%clk 0:00:02.3]} 38...
c1=Q {[%clk 0:00:14.3]} 39. Rxc1 {[%clk 0:00:02.6]} 39... Bxc1 {[%clk
0:00:15.1]} 40. Bd3+ {[%clk 0:00:03.1]} 40... g6 {[%clk 0:00:14.1]} 41. Nd6
{[%clk 0:00:04]} 41... Ra1 {[%clk 0:00:14.1]} 42. Kh2 {[%clk 0:00:04.2]} 42...
Bf4+ {[%clk 0:00:14.3]} 43. g3 {[%clk 0:00:05]} 43... Bxe5 {[%clk 0:00:14.8]}
44. Ne4 {[%clk 0:00:05.9]} 44... Bf5 {[%clk 0:00:14.4]} 45. Kg2 {[%clk
0:00:05.4]} 45... Bxe4+ {[%clk 0:00:14.2]} 46. Bxe4 {[%clk 0:00:06.3]} 46... Ra2
{[%clk 0:00:14.4]} 47. Kf1 {[%clk 0:00:05.2]} 47... Bd4 {[%clk 0:00:14.5]} 48.
f4 {[%clk 0:00:05.7]} 48... Rf2+ {[%clk 0:00:14.6]} 49. Ke1 {[%clk 0:00:06.4]}
49... Kg7 {[%clk 0:00:14.8]} 50. Bd3 {[%clk 0:00:06.5]} 50... f5 {[%clk
0:00:14.4]} 51. Bf1 {[%clk 0:00:07.4]} 51... Rh2 {[%clk 0:00:14]} 52. Bc4 {[%clk
0:00:08.3]} 52... Bf2+ {[%clk 0:00:13.9]} 53. Ke2 {[%clk 0:00:08.6]} 53... Bxg3+
{[%clk 0:00:14.5]} 54. Kf3 {[%clk 0:00:09.5]} 54... Bxf4 {[%clk 0:00:14.3]} 55.
Kxf4 {[%clk 0:00:09.5]} 55... Rxh3 {[%clk 0:00:14.9]} 56. Ke5 {[%clk 0:00:10.4]}
56... Rh4 {[%clk 0:00:15.2]} 57. Bd5 {[%clk 0:00:11.3]} 57... Rb4 {[%clk
0:00:14.3]} 58. Bf3 {[%clk 0:00:11.6]} 58... g5 {[%clk 0:00:14.1]} 59. Kxf5
{[%clk 0:00:12]} 59... Rf4+ {[%clk 0:00:13.5]} 60. Ke5 {[%clk 0:00:11.9]} 60...
Rxf3 {[%clk 0:00:14.4]} 61. Ke6 {[%clk 0:00:12.8]} 61... Rf7 {[%clk 0:00:15]}
0-1

[Event "*** SCC Grand Prix: Titled Tuesday Blitz"]
[Site "Chess.com"]
[Date "2020.07.21"]
[Round "10"]
[White "FairChess_on_YouTube"]
[Black "swimmerchess"]
[Result "1-0"]
[WhiteElo "2994"]
[BlackElo "2804"]
[TimeControl "180+1"]
[EndTime "12:00:29 PDT"]
[Termination "FairChess_on_YouTube won by resignation"]

1. e4 {[%clk 0:03:00.9]} 1... c5 {[%clk 0:02:59.5]} 2. Nc3 {[%clk 0:03:01]} 2...
Nc6 {[%clk 0:02:58.6]} 3. Nge2 {[%clk 0:03:00.9]} 3... Nf6 {[%clk 0:02:57.5]} 4.
d4 {[%clk 0:03:00.9]} 4... cxd4 {[%clk 0:02:57.3]} 5. Nxd4 {[%clk 0:03:01.8]}
5... d6 {[%clk 0:02:58.2]} 6. h3 {[%clk 0:03:01.3]} 6... e5 {[%clk 0:02:54]} 7.
Nf3 {[%clk 0:02:57.8]} 7... h6 {[%clk 0:02:51.5]} 8. Bc4 {[%clk 0:02:55.6]} 8...
Be7 {[%clk 0:02:50.2]} 9. a3 {[%clk 0:02:52.3]} 9... O-O {[%clk 0:02:49.6]} 10.
O-O {[%clk 0:02:52.4]} 10... Be6 {[%clk 0:02:47.9]} 11. Ba2 {[%clk 0:02:52.2]}
11... Rc8 {[%clk 0:02:47.2]} 12. Be3 {[%clk 0:02:50.8]} 12... a6 {[%clk
0:02:44]} 13. Qd3 {[%clk 0:02:50.6]} 13... Na5 {[%clk 0:02:40.7]} 14. Nd2 {[%clk
0:02:42.7]} 14... b5 {[%clk 0:02:38.8]} 15. Rfd1 {[%clk 0:02:36.9]} 15... Qc7
{[%clk 0:02:37.4]} 16. Nd5 {[%clk 0:01:46.9]} 16... Bxd5 {[%clk 0:02:33.4]} 17.
exd5 {[%clk 0:01:47.8]} 17... Qxc2 {[%clk 0:02:33]} 18. Qxc2 {[%clk 0:01:47.7]}
18... Rxc2 {[%clk 0:02:33.9]} 19. b4 {[%clk 0:01:47.9]} 19... Nb7 {[%clk
0:02:23.8]} 20. Bb3 {[%clk 0:01:37.9]} 20... Rc3 {[%clk 0:02:23]} 21. a4 {[%clk
0:01:33.8]} 21... Rfc8 {[%clk 0:02:15.4]} 22. axb5 {[%clk 0:01:32.6]} 22... axb5
{[%clk 0:02:15.8]} 23. Ra7 {[%clk 0:01:31.2]} 23... R8c7 {[%clk 0:02:10.3]} 24.
Bb6 {[%clk 0:01:23.9]} 24... Rd7 {[%clk 0:02:10.1]} 25. Ba2 {[%clk 0:01:14.3]}
25... Bd8 {[%clk 0:02:08.6]} 26. Rxb7 {[%clk 0:01:05.3]} 26... Rxb7 {[%clk
0:02:01.3]} 27. Bxd8 {[%clk 0:01:05.7]} 27... Rd3 {[%clk 0:01:56.9]} 28. Bxf6
{[%clk 0:01:04.3]} 28... gxf6 {[%clk 0:01:55.8]} 29. Kf1 {[%clk 0:01:01.4]}
29... Ra7 {[%clk 0:01:55.1]} 30. Ke2 {[%clk 0:00:51.2]} 30... Rd4 {[%clk
0:01:51.6]} 31. Bb1 {[%clk 0:00:51.4]} 31... Rxb4 {[%clk 0:01:49.2]} 32. Ne4
{[%clk 0:00:47.4]} 32... Ra6 {[%clk 0:01:44.3]} 33. Nxf6+ {[%clk 0:00:43.2]}
33... Kf8 {[%clk 0:01:43.6]} 34. Bf5 {[%clk 0:00:41.6]} 34... Ra2+ {[%clk
0:01:38.9]} 35. Ke3 {[%clk 0:00:34.4]} 35... Rbb2 {[%clk 0:01:36.6]} 36. g4
{[%clk 0:00:27.8]} 36... Re2+ {[%clk 0:01:30.9]} 37. Kf3 {[%clk 0:00:27.7]}
37... Rxf2+ {[%clk 0:01:31.8]} 38. Kg3 {[%clk 0:00:28.1]} 38... Rfd2 {[%clk
0:01:24.2]} 39. Rc1 {[%clk 0:00:26.8]} 39... Ra8 {[%clk 0:01:16.2]} 40. Rc7
{[%clk 0:00:26.5]} 40... Kg7 {[%clk 0:00:34.6]} 41. Nh5+ {[%clk 0:00:26.6]}
41... Kf8 {[%clk 0:00:34.3]} 42. Nf6 {[%clk 0:00:26.7]} 42... Kg7 {[%clk
0:00:32.2]} 43. Nh5+ {[%clk 0:00:22.9]} 43... Kf8 {[%clk 0:00:32.3]} 44. Kh4
{[%clk 0:00:23.8]} 44... b4 {[%clk 0:00:29.6]} 45. Nf6 {[%clk 0:00:23]} 45...
Kg7 {[%clk 0:00:25.1]} 46. Nh5+ {[%clk 0:00:22.3]} 46... Kf8 {[%clk 0:00:25.4]}
47. Nf6 {[%clk 0:00:22.8]} 47... Kg7 {[%clk 0:00:25.2]} 48. Ne4 {[%clk
0:00:23.3]} 48... Rxd5 {[%clk 0:00:24.3]} 49. Be6 {[%clk 0:00:23]} 49... Rd4
{[%clk 0:00:24.4]} 50. Bxf7 {[%clk 0:00:20.8]} 50... Kf8 {[%clk 0:00:20.5]} 51.
Nf6 {[%clk 0:00:20.5]} 51... Ra3 {[%clk 0:00:17.5]} 52. Be6 {[%clk 0:00:17.2]}
1-0

[Event "*** SCC Grand Prix: Titled Tuesday Blitz"]
[Site "Chess.com"]
[Date "2020.07.21"]
[Round "10"]
[White "1977Ivan"]
[Black "Andreikka"]
[Result "1-0"]
[WhiteElo "2744"]
[BlackElo "2885"]
[TimeControl "180+1"]
[EndTime "12:00:29 PDT"]
[Termination "1977Ivan won by checkmate"]

1. c4 {[%clk 0:03:00.9]} 1... Nf6 {[%clk 0:02:54.3]} 2. Nc3 {[%clk 0:02:59.8]}
2... e5 {[%clk 0:02:53.9]} 3. Nf3 {[%clk 0:02:59.1]} 3... Nc6 {[%clk 0:02:53.4]}
4. g3 {[%clk 0:02:59.6]} 4... Bb4 {[%clk 0:02:35.4]} 5. Nd5 {[%clk 0:02:58.7]}
5... e4 {[%clk 0:02:34.7]} 6. Nh4 {[%clk 0:02:58]} 6... d6 {[%clk 0:02:30.7]} 7.
Qa4 {[%clk 0:02:42.8]} 7... Bc5 {[%clk 0:02:24.1]} 8. b4 {[%clk 0:02:29]} 8...
Bd4 {[%clk 0:02:24]} 9. Rb1 {[%clk 0:02:28.4]} 9... O-O {[%clk 0:02:22.8]} 10.
e3 {[%clk 0:02:11.5]} 10... Be5 {[%clk 0:02:18.7]} 11. Bg2 {[%clk 0:01:48.1]}
11... g5 {[%clk 0:01:55.3]} 12. b5 {[%clk 0:01:41.5]} 12... Ne7 {[%clk
0:01:53.6]} 13. f4 {[%clk 0:01:30.1]} 13... gxh4 {[%clk 0:01:38.2]} 14. fxe5
{[%clk 0:01:29.5]} 14... Nfxd5 {[%clk 0:01:33.2]} 15. cxd5 {[%clk 0:01:29.2]}
15... dxe5 {[%clk 0:01:32.9]} 16. Bxe4 {[%clk 0:01:20]} 16... Nxd5 {[%clk
0:01:31.2]} 17. Bc2 {[%clk 0:01:12.9]} 17... f5 {[%clk 0:01:27.7]} 18. Ba3
{[%clk 0:01:01.4]} 18... Rf7 {[%clk 0:01:24.3]} 19. Qxh4 {[%clk 0:00:58.7]}
19... Qxh4 {[%clk 0:01:23.8]} 20. gxh4 {[%clk 0:00:59.6]} 20... Be6 {[%clk
0:01:23.7]} 21. Rg1+ {[%clk 0:00:58.9]} 21... Rg7 {[%clk 0:01:20.9]} 22. Kf2
{[%clk 0:00:57.7]} 22... Nf6 {[%clk 0:01:05.2]} 23. Bb2 {[%clk 0:00:54.9]} 23...
Ng4+ {[%clk 0:01:02.8]} 24. Ke2 {[%clk 0:00:54.9]} 24... Bxa2 {[%clk 0:01:00.9]}
25. Ra1 {[%clk 0:00:53.1]} 25... Bc4+ {[%clk 0:01:00.9]} 26. d3 {[%clk 0:00:53]}
26... Bxb5 {[%clk 0:01:00.7]} 27. Bb3+ {[%clk 0:00:51.1]} 27... Kh8 {[%clk
0:00:49.4]} 28. h3 {[%clk 0:00:50]} 28... Rd8 {[%clk 0:00:48.4]} 29. Rad1 {[%clk
0:00:35]} 29... Bxd3+ {[%clk 0:00:18]} 30. Rxd3 {[%clk 0:00:34.6]} 30... Rxd3
{[%clk 0:00:14.5]} 31. Kxd3 {[%clk 0:00:35.5]} 31... Nf2+ {[%clk 0:00:13.4]} 32.
Ke2 {[%clk 0:00:34.7]} 32... Rxg1 {[%clk 0:00:13]} 33. Bxe5+ {[%clk 0:00:34.5]}
33... Rg7 {[%clk 0:00:12.6]} 34. Kxf2 {[%clk 0:00:34.7]} 34... b5 {[%clk
0:00:11.9]} 35. Kf3 {[%clk 0:00:32.6]} 35... c5 {[%clk 0:00:09.3]} 36. Bd5
{[%clk 0:00:31.5]} 36... a5 {[%clk 0:00:07.4]} 37. Kf4 {[%clk 0:00:27]} 37... c4
{[%clk 0:00:05.5]} 38. Kxf5 {[%clk 0:00:25.9]} 38... a4 {[%clk 0:00:05.2]} 39.
Bc3 {[%clk 0:00:16.7]} 39... a3 {[%clk 0:00:03.9]} 40. Ba1 {[%clk 0:00:15.2]}
40... a2 {[%clk 0:00:02.4]} 41. e4 {[%clk 0:00:14.8]} 41... h5 {[%clk
0:00:02.7]} 42. e5 {[%clk 0:00:14]} 42... Ra7 {[%clk 0:00:01.8]} 43. e6+ {[%clk
0:00:13.5]} 43... Kh7 {[%clk 0:00:02.4]} 44. Kf6 {[%clk 0:00:13.7]} 44... Ra6
{[%clk 0:00:02.3]} 45. Kf7 {[%clk 0:00:13.4]} 45... b4 {[%clk 0:00:02.6]} 46.
Bxc4 {[%clk 0:00:12.8]} 46... Ra7+ {[%clk 0:00:03]} 47. e7 {[%clk 0:00:12.7]}
47... Rc7 {[%clk 0:00:01.9]} 48. Bd3+ {[%clk 0:00:08.5]} 48... Kh6 {[%clk
0:00:01.7]} 49. Bg7# {[%clk 0:00:07.7]} 1-0